[Event "Early-Titled-Tuesday-Blitz-November-28-2023"]
[Site "Chess.com"]
[Date "2023.11.28"]
[Round "5"]
[White "GaiozNigalidze"]
[Black "Nitzan_Steinberg"]
[Result "1-0"]
[WhiteElo "2685"]
[BlackElo "2891"]
[TimeControl "180+1"]
[EndTime "8:59:10 PST"]
[Termination "GaiozNigalidze won on time"]

1. d4 {[%clk 0:03:00.9]} 1... Nf6 {[%clk 0:02:57.9]} 2. c4 {[%clk 0:02:59.4]}
2... e6 {[%clk 0:02:57.8]} 3. Nf3 {[%clk 0:02:58.6]} 3... d5 {[%clk 0:02:55.9]}
4. Nc3 {[%clk 0:02:56.7]} 4... Bb4 {[%clk 0:02:55.4]} 5. cxd5 {[%clk 0:02:56.1]}
5... exd5 {[%clk 0:02:55.4]} 6. Bg5 {[%clk 0:02:56]} 6... h6 {[%clk 0:02:53.3]}
7. Bxf6 {[%clk 0:02:55.4]} 7... Qxf6 {[%clk 0:02:53.1]} 8. Qb3 {[%clk
0:02:55.3]} 8... c5 {[%clk 0:02:36.5]} 9. dxc5 {[%clk 0:02:43.1]} 9... Nc6
{[%clk 0:02:34.9]} 10. e3 {[%clk 0:02:40.4]} 10... O-O {[%clk 0:02:30.4]} 11.
Be2 {[%clk 0:02:33.2]} 11... Be6 {[%clk 0:02:25.3]} 12. Qc2 {[%clk 0:02:21.7]}
12... Bxc5 {[%clk 0:02:14.2]} 13. O-O {[%clk 0:02:16.3]} 13... Rfd8 {[%clk
0:02:02.4]} 14. Rfd1 {[%clk 0:01:42.6]} 14... Rac8 {[%clk 0:01:47.3]} 15. Rac1
{[%clk 0:01:27.9]} 15... Bb6 {[%clk 0:01:47.2]} 16. Qa4 {[%clk 0:01:25]} 16...
g6 {[%clk 0:01:24.6]} 17. a3 {[%clk 0:01:18.9]} 17... d4 {[%clk 0:01:14.5]} 18.
exd4 {[%clk 0:01:17]} 18... Nxd4 {[%clk 0:01:09.6]} 19. Nxd4 {[%clk 0:01:16]}
19... Rxd4 {[%clk 0:01:08.3]} 20. Rxd4 {[%clk 0:01:15.3]} 20... Bxd4 {[%clk
0:01:07.3]} 21. Bf3 {[%clk 0:01:11.9]} 21... Bxc3 {[%clk 0:00:51]} 22. bxc3
{[%clk 0:01:12.8]} 22... Rxc3 {[%clk 0:00:47]} 23. Re1 {[%clk 0:01:12.9]} 23...
Rxf3 {[%clk 0:00:23]} 24. gxf3 {[%clk 0:01:12.7]} 24... Qxf3 {[%clk 0:00:18.7]}
25. Re3 {[%clk 0:01:00.1]} 25... Qd5 {[%clk 0:00:12.9]} 26. Qc2 {[%clk
0:00:48.5]} 26... Qg5+ {[%clk 0:00:12.6]} 27. Rg3 {[%clk 0:00:47.8]} 27... Qe5
{[%clk 0:00:09.1]} 28. Re3 {[%clk 0:00:42.5]} 28... Qa1+ {[%clk 0:00:08.7]} 29.
Kg2 {[%clk 0:00:42.6]} 29... b6 {[%clk 0:00:04.5]} 30. Qc7 {[%clk 0:00:25.5]}
30... Qd4 {[%clk 0:00:03.6]} 31. Qc3 {[%clk 0:00:16.5]} 31... Bd5+ {[%clk
0:00:03.8]} 32. f3 {[%clk 0:00:17]} 32... Qxc3 {[%clk 0:00:02.8]} 33. Rxc3
{[%clk 0:00:16.7]} 33... Kg7 {[%clk 0:00:02.7]} 34. Rc7 {[%clk 0:00:16.6]} 34...
a6 {[%clk 0:00:03.2]} 35. Ra7 {[%clk 0:00:16.5]} 35... Bc4 {[%clk 0:00:03.3]}
36. Rb7 {[%clk 0:00:16.6]} 36... b5 {[%clk 0:00:03.5]} 37. Ra7 {[%clk
0:00:16.9]} 37... Kf6 {[%clk 0:00:03.4]} 38. Rxa6+ {[%clk 0:00:17.3]} 38... Ke5
{[%clk 0:00:04]} 39. Ra7 {[%clk 0:00:17.2]} 39... h5 {[%clk 0:00:03.9]} 40. Rd7
{[%clk 0:00:15.8]} 40... Bd5 {[%clk 0:00:03.1]} 41. Kf2 {[%clk 0:00:15.8]} 41...
Kd4 {[%clk 0:00:03.3]} 42. Ke2 {[%clk 0:00:16]} 42... Kc4 {[%clk 0:00:02.7]} 43.
Ke3 {[%clk 0:00:15.6]} 43... Be6 {[%clk 0:00:03.1]} 44. Rb7 {[%clk 0:00:15.9]}
44... Kc5 {[%clk 0:00:02.6]} 45. Kf4 {[%clk 0:00:15.7]} 45... Bd5 {[%clk
0:00:02.7]} 46. Rb8 {[%clk 0:00:15.9]} 46... Kc4 {[%clk 0:00:03]} 47. Ke3 {[%clk
0:00:16.2]} 47... Be6 {[%clk 0:00:03.3]} 48. f4 {[%clk 0:00:16.3]} 48... Bd5
{[%clk 0:00:03.3]} 49. Rb6 {[%clk 0:00:16.2]} 49... Kc5 {[%clk 0:00:03.7]} 50.
Rb8 {[%clk 0:00:16.4]} 50... Be6 {[%clk 0:00:03.2]} 51. Ke4 {[%clk 0:00:16.8]}
51... Bd5+ {[%clk 0:00:03.5]} 52. Ke5 {[%clk 0:00:17.2]} 52... Bc4 {[%clk
0:00:03.7]} 53. Kf6 {[%clk 0:00:17]} 53... Kd4 {[%clk 0:00:03.9]} 54. Re8 {[%clk
0:00:17]} 54... Kc3 {[%clk 0:00:04.1]} 55. Re7 {[%clk 0:00:17.3]} 55... Kb2
{[%clk 0:00:04.3]} 56. Ra7 {[%clk 0:00:17.4]} 56... Bb3 {[%clk 0:00:04.4]} 57.
h4 {[%clk 0:00:17.2]} 57... Bc4 {[%clk 0:00:04.4]} 58. f5 {[%clk 0:00:16.5]}
58... Bd3 {[%clk 0:00:03.1]} 59. fxg6 {[%clk 0:00:13.9]} 59... fxg6 {[%clk
0:00:04]} 60. Kg5 {[%clk 0:00:14]} 60... Kb3 {[%clk 0:00:03.5]} 61. Kf4 {[%clk
0:00:14.4]} 61... Bc4 {[%clk 0:00:02.9]} 62. Ke5 {[%clk 0:00:14.8]} 62... Bd3
{[%clk 0:00:02.4]} 63. Kd4 {[%clk 0:00:15.2]} 63... Bc4 {[%clk 0:00:02.4]} 64.
Kc5 {[%clk 0:00:15.6]} 64... Kb2 {[%clk 0:00:01.9]} 65. Kb4 {[%clk 0:00:14.9]}
65... Bd3 {[%clk 0:00:01.8]} 66. Rd7 {[%clk 0:00:15]} 66... Bc4 {[%clk 0:00:02]}
67. Rd4 {[%clk 0:00:15.1]} 67... Kc2 {[%clk 0:00:01.9]} 68. Rd6 {[%clk
0:00:12.5]} 1-0

[Event "Early-Titled-Tuesday-Blitz-November-28-2023"]
[Site "Chess.com"]
[Date "2023.11.28"]
[Round "5"]
[White "K_A_S_T_O_R"]
[Black "SashaKuzhilniy"]
[Result "1-0"]
[WhiteElo "2854"]
[BlackElo "2630"]
[TimeControl "180+1"]
[EndTime "8:59:21 PST"]
[Termination "K_A_S_T_O_R won by resignation"]

1. e4 {[%clk 0:02:56.6]} 1... e5 {[%clk 0:02:59.4]} 2. Nf3 {[%clk 0:02:55.7]}
2... Nc6 {[%clk 0:03:00]} 3. Bb5 {[%clk 0:02:56]} 3... Nf6 {[%clk 0:03:00.2]} 4.
d3 {[%clk 0:02:55.9]} 4... Bc5 {[%clk 0:02:59.5]} 5. c3 {[%clk 0:02:55.6]} 5...
d5 {[%clk 0:02:59]} 6. Qe2 {[%clk 0:02:54.2]} 6... dxe4 {[%clk 0:02:57.2]} 7.
dxe4 {[%clk 0:02:54.1]} 7... O-O {[%clk 0:02:55.8]} 8. O-O {[%clk 0:02:53.2]}
8... Qe7 {[%clk 0:02:55.2]} 9. Bg5 {[%clk 0:02:52.2]} 9... h6 {[%clk 0:02:51.8]}
10. Bxf6 {[%clk 0:02:52.1]} 10... Qxf6 {[%clk 0:02:52.7]} 11. Nbd2 {[%clk
0:02:52.4]} 11... Ne7 {[%clk 0:02:50.7]} 12. b4 {[%clk 0:02:44.1]} 12... Bb6
{[%clk 0:02:47.2]} 13. Nc4 {[%clk 0:02:44.1]} 13... Ng6 {[%clk 0:02:43.9]} 14.
g3 {[%clk 0:02:43.7]} 14... Bg4 {[%clk 0:02:41.1]} 15. Kg2 {[%clk 0:02:43.5]}
15... Rfd8 {[%clk 0:02:29.5]} 16. Rfd1 {[%clk 0:02:35.8]} 16... c6 {[%clk
0:02:11.3]} 17. Nxb6 {[%clk 0:02:29.7]} 17... axb6 {[%clk 0:02:12.2]} 18. Bc4
{[%clk 0:02:29.9]} 18... b5 {[%clk 0:02:10.8]} 19. Bb3 {[%clk 0:02:29.9]} 19...
Rxd1 {[%clk 0:01:57.9]} 20. Rxd1 {[%clk 0:02:29.2]} 20... Rd8 {[%clk 0:01:58.6]}
21. Rxd8+ {[%clk 0:02:29.1]} 21... Qxd8 {[%clk 0:01:57.9]} 22. h3 {[%clk
0:02:29.1]} 22... Bc8 {[%clk 0:01:48.3]} 23. Qe3 {[%clk 0:02:17.3]} 23... Qd7
{[%clk 0:01:40.3]} 24. h4 {[%clk 0:02:04.9]} 24... Qd6 {[%clk 0:01:20.1]} 25.
Ne1 {[%clk 0:01:58.4]} 25... Nf8 {[%clk 0:01:12.3]} 26. Nd3 {[%clk 0:01:54.1]}
26... Be6 {[%clk 0:01:08.3]} 27. Nc5 {[%clk 0:01:40.2]} 27... Bxb3 {[%clk
0:01:05.3]} 28. axb3 {[%clk 0:01:40.7]} 28... b6 {[%clk 0:00:57.2]} 29. Nd3
{[%clk 0:01:40.3]} 29... Ne6 {[%clk 0:00:53.8]} 30. Kf3 {[%clk 0:01:31.5]} 30...
c5 {[%clk 0:00:48.9]} 31. Ke2 {[%clk 0:01:30.2]} 31... c4 {[%clk 0:00:35]} 32.
Nc1 {[%clk 0:01:27.8]} 32... Qc6 {[%clk 0:00:25]} 33. Kd2 {[%clk 0:01:20.3]}
33... Kf8 {[%clk 0:00:23.2]} 34. f3 {[%clk 0:01:14.6]} 34... Ke7 {[%clk
0:00:22.7]} 35. Kc2 {[%clk 0:01:12.3]} 35... Qd6 {[%clk 0:00:20.3]} 36. Qe2
{[%clk 0:01:03]} 36... Qc6 {[%clk 0:00:16.8]} 37. Kb2 {[%clk 0:01:03.2]} 37...
Kd7 {[%clk 0:00:16.4]} 38. Qd2+ {[%clk 0:00:58.3]} 38... Kc7 {[%clk 0:00:16.8]}
39. Ne2 {[%clk 0:00:56]} 39... Qd6 {[%clk 0:00:16.6]} 40. Qxd6+ {[%clk
0:00:47.1]} 40... Kxd6 {[%clk 0:00:17.5]} 41. Kc2 {[%clk 0:00:47.3]} 41... h5
{[%clk 0:00:17]} 42. Ng1 {[%clk 0:00:44]} 42... g6 {[%clk 0:00:16.6]} 43. Nh3
{[%clk 0:00:44]} 43... f5 {[%clk 0:00:16.1]} 44. Nf2 {[%clk 0:00:43.8]} 44... f4
{[%clk 0:00:12]} 45. g4 {[%clk 0:00:42.5]} 45... hxg4 {[%clk 0:00:12.5]} 46.
fxg4 {[%clk 0:00:38.8]} 46... Ke7 {[%clk 0:00:11.8]} 47. g5 {[%clk 0:00:37.3]}
47... Ng7 {[%clk 0:00:10.1]} 48. Ng4 {[%clk 0:00:36.4]} 48... Ke6 {[%clk
0:00:10.7]} 49. bxc4 {[%clk 0:00:36.8]} 49... bxc4 {[%clk 0:00:10.8]} 50. Nf6
{[%clk 0:00:35.7]} 50... Nh5 {[%clk 0:00:10]} 51. Nd5 {[%clk 0:00:31.3]} 51...
Ng3 {[%clk 0:00:07.6]} 52. Nxb6 {[%clk 0:00:30.5]} 52... f3 {[%clk 0:00:08]} 53.
Nxc4 {[%clk 0:00:27.3]} 53... f2 {[%clk 0:00:08.3]} 54. Nd2 {[%clk 0:00:26.7]}
54... Nxe4 {[%clk 0:00:07.6]} 55. Nf1 {[%clk 0:00:26.1]} 55... Nd6 {[%clk
0:00:06.1]} 56. Kd3 {[%clk 0:00:25.8]} 56... Kd5 {[%clk 0:00:06.4]} 57. Ne3+
{[%clk 0:00:21]} 57... Ke6 {[%clk 0:00:06.8]} 58. Ke2 {[%clk 0:00:21.5]} 58...
Ne4 {[%clk 0:00:07.1]} 59. c4 {[%clk 0:00:19.5]} 59... Kd6 {[%clk 0:00:07.2]}
60. Nd5 {[%clk 0:00:19.1]} 60... Ng3+ {[%clk 0:00:05]} 61. Kxf2 {[%clk
0:00:18.7]} 61... Nf5 {[%clk 0:00:05.9]} 62. h5 {[%clk 0:00:18]} 62... gxh5
{[%clk 0:00:06.8]} 63. Nf6 {[%clk 0:00:17.4]} 63... h4 {[%clk 0:00:06.9]} 64.
Ne4+ {[%clk 0:00:17.5]} 64... Ke6 {[%clk 0:00:07.2]} 65. b5 {[%clk 0:00:17.2]}
65... h3 {[%clk 0:00:06.9]} 66. Kg1 {[%clk 0:00:17.6]} 66... Ne3 {[%clk
0:00:05.4]} 67. c5 {[%clk 0:00:17.9]} 67... Kd5 {[%clk 0:00:04.7]} 68. g6 {[%clk
0:00:18.3]} 68... Nf5 {[%clk 0:00:05]} 69. b6 {[%clk 0:00:18.1]} 69... Kc6
{[%clk 0:00:03.4]} 70. Kh2 {[%clk 0:00:18.5]} 70... Nh4 {[%clk 0:00:02.3]} 71.
g7 {[%clk 0:00:18.3]} 71... Nf3+ {[%clk 0:00:03.1]} 72. Kxh3 {[%clk 0:00:18.1]}
72... Nd4 {[%clk 0:00:04]} 1-0

[Event "Early-Titled-Tuesday-Blitz-November-28-2023"]
[Site "Chess.com"]
[Date "2023.11.28"]
[Round "5"]
[White "VitaliyChayka"]
[Black "CristianS27"]
[Result "0-1"]
[WhiteElo "2421"]
[BlackElo "2581"]
[TimeControl "180+1"]
[EndTime "8:59:42 PST"]
[Termination "CristianS27 won by resignation"]

1. d4 {[%clk 0:03:00.9]} 1... Nf6 {[%clk 0:02:56.8]} 2. Bf4 {[%clk 0:03:01.5]}
2... c5 {[%clk 0:02:56.4]} 3. e3 {[%clk 0:03:01.9]} 3... Qb6 {[%clk 0:02:56.7]}
4. Na3 {[%clk 0:03:01.2]} 4... a6 {[%clk 0:02:55.6]} 5. Nc4 {[%clk 0:02:57.5]}
5... Qa7 {[%clk 0:02:51.3]} 6. dxc5 {[%clk 0:02:52.3]} 6... Qxc5 {[%clk
0:02:49.6]} 7. Qd4 {[%clk 0:02:48.2]} 7... Qxd4 {[%clk 0:02:35]} 8. exd4 {[%clk
0:02:49.1]} 8... Nd5 {[%clk 0:02:35.7]} 9. Bg3 {[%clk 0:02:45.5]} 9... b5 {[%clk
0:02:34.7]} 10. Ne3 {[%clk 0:02:34.3]} 10... Nxe3 {[%clk 0:02:34.9]} 11. fxe3
{[%clk 0:02:35.2]} 11... Bb7 {[%clk 0:02:35.8]} 12. Nf3 {[%clk 0:02:34.5]} 12...
g6 {[%clk 0:02:34.1]} 13. Bd3 {[%clk 0:02:31.1]} 13... Bg7 {[%clk 0:02:34.4]}
14. c3 {[%clk 0:02:31.1]} 14... O-O {[%clk 0:02:34.7]} 15. Kf2 {[%clk
0:02:28.5]} 15... d6 {[%clk 0:02:34.9]} 16. a4 {[%clk 0:02:27.7]} 16... bxa4
{[%clk 0:02:21.3]} 17. Rxa4 {[%clk 0:02:28.6]} 17... e5 {[%clk 0:02:11.7]} 18.
dxe5 {[%clk 0:02:25.2]} 18... dxe5 {[%clk 0:02:12]} 19. Bxe5 {[%clk 0:02:18.3]}
19... Nd7 {[%clk 0:02:06]} 20. Bxg7 {[%clk 0:02:14.3]} 20... Kxg7 {[%clk
0:02:06.9]} 21. Ra3 {[%clk 0:01:50.1]} 21... Nc5 {[%clk 0:02:01.9]} 22. Bc2
{[%clk 0:01:48.9]} 22... Rad8 {[%clk 0:01:58.6]} 23. Nd4 {[%clk 0:01:46.8]}
23... Rfe8 {[%clk 0:01:42.5]} 24. Ra5 {[%clk 0:01:20.9]} 24... Ne6 {[%clk
0:01:40.2]} 25. Rd1 {[%clk 0:01:12.2]} 25... Nc7 {[%clk 0:01:33]} 26. Bd3 {[%clk
0:01:10.1]} 26... Nd5 {[%clk 0:01:30.1]} 27. Re1 {[%clk 0:01:04.1]} 27... Rd6
{[%clk 0:01:24.5]} 28. g3 {[%clk 0:00:51.3]} 28... Rf6+ {[%clk 0:01:24.1]} 29.
Kg1 {[%clk 0:00:47.2]} 29... Rxe3 {[%clk 0:01:17.3]} 30. Rxe3 {[%clk 0:00:46.5]}
30... Nxe3 {[%clk 0:01:18.2]} 31. Re5 {[%clk 0:00:41.6]} 31... Ng4 {[%clk
0:01:03.9]} 32. Re7 {[%clk 0:00:40.7]} 32... Bd5 {[%clk 0:00:54.2]} 33. c4
{[%clk 0:00:37.2]} 33... Ba8 {[%clk 0:00:50.5]} 34. Be2 {[%clk 0:00:27.4]} 34...
Nf2 {[%clk 0:00:49.7]} 35. Bf1 {[%clk 0:00:22.8]} 35... h5 {[%clk 0:00:36]} 36.
Bg2 {[%clk 0:00:22.3]} 36... Bxg2 {[%clk 0:00:34.4]} 37. Kxg2 {[%clk 0:00:23.2]}
37... Nd1 {[%clk 0:00:33.2]} 38. b4 {[%clk 0:00:21.7]} 38... Rf2+ {[%clk
0:00:31]} 39. Kg1 {[%clk 0:00:21.3]} 39... Rd2 {[%clk 0:00:27.1]} 40. Nf3 {[%clk
0:00:19.2]} 40... Rb2 {[%clk 0:00:25.4]} 41. c5 {[%clk 0:00:18.5]} 41... Rxb4
{[%clk 0:00:22.2]} 42. c6 {[%clk 0:00:18.7]} 42... Kf6 {[%clk 0:00:20.4]} 43.
Rb7 {[%clk 0:00:15.5]} 43... Rc4 {[%clk 0:00:20]} 44. c7 {[%clk 0:00:15.4]}
44... Ne3 {[%clk 0:00:15.9]} 45. Nd2 {[%clk 0:00:13.8]} 45... Rc1+ {[%clk
0:00:14.3]} 46. Kf2 {[%clk 0:00:13.8]} 46... Nd5 {[%clk 0:00:15.2]} 47. Ne4+
{[%clk 0:00:12.3]} 47... Ke5 {[%clk 0:00:14.7]} 48. Ng5 {[%clk 0:00:08.8]} 48...
Rc2+ {[%clk 0:00:10.9]} 49. Kf3 {[%clk 0:00:07.3]} 49... f6 {[%clk 0:00:10.3]}
50. Nf7+ {[%clk 0:00:06.6]} 50... Ke6 {[%clk 0:00:09]} 51. Nd8+ {[%clk
0:00:06.6]} 51... Kd7 {[%clk 0:00:09.6]} 52. Ke4 {[%clk 0:00:05.9]} 52... Nxc7
{[%clk 0:00:08.3]} 53. Nf7 {[%clk 0:00:04.6]} 53... Rc4+ {[%clk 0:00:05.1]} 54.
Kd3 {[%clk 0:00:04.2]} 54... Ra4 {[%clk 0:00:05.1]} 55. Nh8 {[%clk 0:00:04.9]}
55... g5 {[%clk 0:00:04.8]} 56. Ng6 {[%clk 0:00:04.1]} 56... Kc6 {[%clk
0:00:05.1]} 57. Rb8 {[%clk 0:00:03.7]} 57... Ra3+ {[%clk 0:00:05.3]} 58. Kc4
{[%clk 0:00:02.8]} 58... Ra4+ {[%clk 0:00:05.7]} 59. Kb3 {[%clk 0:00:02.7]}
59... Re4 {[%clk 0:00:05.5]} 60. Nf8 {[%clk 0:00:02.2]} 60... a5 {[%clk
0:00:05.3]} 61. Kc3 {[%clk 0:00:02.2]} 61... a4 {[%clk 0:00:05.5]} 62. h4 {[%clk
0:00:02]} 62... gxh4 {[%clk 0:00:05.5]} 63. gxh4 {[%clk 0:00:02.9]} 63... Rxh4
{[%clk 0:00:06.3]} 64. Ng6 {[%clk 0:00:02.7]} 64... Rh3+ {[%clk 0:00:05.8]} 65.
Kc4 {[%clk 0:00:02.8]} 65... Rg3 {[%clk 0:00:05.5]} 66. Ne7+ {[%clk 0:00:03.4]}
66... Kd7 {[%clk 0:00:06.2]} 67. Nf5 {[%clk 0:00:04.2]} 67... Rg4+ {[%clk
0:00:06.3]} 68. Nd4 {[%clk 0:00:04.3]} 68... Ne6 {[%clk 0:00:05.2]} 69. Rb7+
{[%clk 0:00:04]} 69... Kc8 {[%clk 0:00:05.8]} 70. Ra7 {[%clk 0:00:01.9]} 70...
Rxd4+ {[%clk 0:00:06]} 71. Kb5 {[%clk 0:00:02.8]} 71... Rd7 {[%clk 0:00:05.6]}
72. Ra8+ {[%clk 0:00:02.6]} 72... Kb7 {[%clk 0:00:06.3]} 73. Rxa4 {[%clk
0:00:02.4]} 73... Rd5+ {[%clk 0:00:06.6]} 74. Kc4 {[%clk 0:00:01.8]} 74... Rd4+
{[%clk 0:00:07.5]} 75. Kb3 {[%clk 0:00:02.2]} 75... Rxa4 {[%clk 0:00:08.4]} 76.
Kxa4 {[%clk 0:00:02.2]} 76... h4 {[%clk 0:00:09.3]} 0-1

[Event "Early-Titled-Tuesday-Blitz-November-28-2023"]
[Site "Chess.com"]
[Date "2023.11.28"]
[Round "5"]
[White "LUISMIGUELOV"]
[Black "Kotlyar_K"]
[Result "0-1"]
[WhiteElo "2216"]
[BlackElo "2658"]
[TimeControl "180+1"]
[EndTime "8:59:47 PST"]
[Termination "Kotlyar_K won on time"]

1. d4 {[%clk 0:02:39.8]} 1... Nf6 {[%clk 0:02:58.4]} 2. c3 {[%clk 0:02:39.8]}
2... g6 {[%clk 0:02:56.1]} 3. Bg5 {[%clk 0:02:40]} 3... Bg7 {[%clk 0:02:56]} 4.
Nd2 {[%clk 0:02:40.5]} 4... d5 {[%clk 0:02:56.1]} 5. h4 {[%clk 0:02:40.8]} 5...
h6 {[%clk 0:02:48.2]} 6. Bxf6 {[%clk 0:02:40.5]} 6... Bxf6 {[%clk 0:02:48.8]} 7.
g3 {[%clk 0:02:39.6]} 7... Nd7 {[%clk 0:02:46.8]} 8. Bg2 {[%clk 0:02:39]} 8...
c6 {[%clk 0:02:44.9]} 9. Ngf3 {[%clk 0:02:38.3]} 9... O-O {[%clk 0:02:44.4]} 10.
e3 {[%clk 0:02:35.3]} 10... e5 {[%clk 0:02:42.4]} 11. dxe5 {[%clk 0:02:33.8]}
11... Nxe5 {[%clk 0:02:43.3]} 12. Nxe5 {[%clk 0:02:33.8]} 12... Bxe5 {[%clk
0:02:44.2]} 13. h5 {[%clk 0:02:28.7]} 13... Bg7 {[%clk 0:02:29.7]} 14. hxg6
{[%clk 0:02:27.2]} 14... fxg6 {[%clk 0:02:30.6]} 15. Qe2 {[%clk 0:02:25.5]}
15... Qf6 {[%clk 0:02:20.1]} 16. f4 {[%clk 0:02:19.7]} 16... a5 {[%clk
0:01:55.1]} 17. O-O-O {[%clk 0:02:14.8]} 17... b5 {[%clk 0:01:53.5]} 18. Bh3
{[%clk 0:02:08.9]} 18... b4 {[%clk 0:01:51.9]} 19. Bxc8 {[%clk 0:02:08.2]} 19...
Rfxc8 {[%clk 0:01:34.7]} 20. Nb1 {[%clk 0:02:03.2]} 20... c5 {[%clk 0:01:29.2]}
21. c4 {[%clk 0:01:55.6]} 21... dxc4 {[%clk 0:01:21.9]} 22. Qxc4+ {[%clk
0:01:54.8]} 22... Kh7 {[%clk 0:01:22.4]} 23. Rd2 {[%clk 0:01:43.2]} 23... Re8
{[%clk 0:01:14.8]} 24. e4 {[%clk 0:01:38.8]} 24... Rad8 {[%clk 0:01:04.3]} 25.
e5 {[%clk 0:01:37.5]} 25... Qf5 {[%clk 0:00:57]} 26. Rhd1 {[%clk 0:01:34.6]}
26... Rxd2 {[%clk 0:00:55.1]} 27. Nxd2 {[%clk 0:01:27.1]} 27... Rd8 {[%clk
0:00:46.2]} 28. Ne4 {[%clk 0:01:25.9]} 28... Rxd1+ {[%clk 0:00:39.2]} 29. Kxd1
{[%clk 0:01:25.8]} 29... g5 {[%clk 0:00:33.4]} 30. Qd3 {[%clk 0:01:21.3]} 30...
Kh8 {[%clk 0:00:26.2]} 31. Nxc5 {[%clk 0:01:14]} 31... Qg4+ {[%clk 0:00:20.4]}
32. Qe2 {[%clk 0:01:12.4]} 32... Qxg3 {[%clk 0:00:20.7]} 33. fxg5 {[%clk
0:01:08.5]} 33... Qg1+ {[%clk 0:00:19]} 34. Kd2 {[%clk 0:01:07.4]} 34... Qxg5+
{[%clk 0:00:19.4]} 35. Qe3 {[%clk 0:01:04.3]} 35... Qxe3+ {[%clk 0:00:16.5]} 36.
Kxe3 {[%clk 0:01:03.5]} 36... Bxe5 {[%clk 0:00:17.4]} 37. b3 {[%clk 0:01:03]}
37... Bc7 {[%clk 0:00:15.9]} 38. Ke4 {[%clk 0:00:59.1]} 38... Kh7 {[%clk
0:00:15.6]} 39. Kf5 {[%clk 0:00:59]} 39... Bd8 {[%clk 0:00:13.7]} 40. Ne6 {[%clk
0:00:58.1]} 40... Bb6 {[%clk 0:00:13.7]} 41. Nf8+ {[%clk 0:00:55]} 41... Kg7
{[%clk 0:00:13.5]} 42. Ne6+ {[%clk 0:00:54.9]} 42... Kf7 {[%clk 0:00:11.8]} 43.
Nf4 {[%clk 0:00:54]} 43... Kg7 {[%clk 0:00:09.2]} 44. Ne6+ {[%clk 0:00:53.4]}
44... Kf7 {[%clk 0:00:08.9]} 45. Nf4 {[%clk 0:00:52.9]} 45... Bd8 {[%clk
0:00:05.8]} 46. Ne6 {[%clk 0:00:49.5]} 46... Be7 {[%clk 0:00:04.3]} 47. Nf4
{[%clk 0:00:47.4]} 47... Bc5 {[%clk 0:00:03.5]} 48. Nh5 {[%clk 0:00:43.6]} 48...
Be3 {[%clk 0:00:02.3]} 49. Ng3 {[%clk 0:00:41.3]} 49... Bc1 {[%clk 0:00:02.9]}
50. Nh5 {[%clk 0:00:38]} 50... Be3 {[%clk 0:00:02.9]} 51. Ng3 {[%clk 0:00:37.8]}
51... Bb6 {[%clk 0:00:03.8]} 52. Nh5 {[%clk 0:00:37]} 52... Ke7 {[%clk
0:00:04.3]} 53. Nf4 {[%clk 0:00:35.6]} 53... Kd6 {[%clk 0:00:04.7]} 54. Ke4
{[%clk 0:00:33.5]} 54... Kc5 {[%clk 0:00:05.1]} 55. Nh5 {[%clk 0:00:31.7]} 55...
Bc7 {[%clk 0:00:04.8]} 56. Nf6 {[%clk 0:00:30.5]} 56... Kd6 {[%clk 0:00:04.7]}
57. Nh5 {[%clk 0:00:29.5]} 57... Ke6 {[%clk 0:00:05]} 58. Ng7+ {[%clk
0:00:27.9]} 58... Kf6 {[%clk 0:00:05.1]} 59. Nh5+ {[%clk 0:00:16.7]} 59... Kg5
{[%clk 0:00:05.1]} 60. Ng7 {[%clk 0:00:15.6]} 60... Kg4 {[%clk 0:00:05.4]} 61.
Ne6 {[%clk 0:00:15.1]} 61... Bg3 {[%clk 0:00:05.3]} 62. Nd4 {[%clk 0:00:12.5]}
62... h5 {[%clk 0:00:05.6]} 63. Ke3 {[%clk 0:00:11.7]} 63... h4 {[%clk
0:00:04.6]} 64. Ke2 {[%clk 0:00:12.2]} 64... h3 {[%clk 0:00:05.1]} 65. Kf1
{[%clk 0:00:12.7]} 65... Kf4 {[%clk 0:00:04.7]} 66. Nc6 {[%clk 0:00:11.3]} 66...
Ke3 {[%clk 0:00:04.2]} 67. Nxa5 {[%clk 0:00:09.7]} 67... Bd6 {[%clk 0:00:02.4]}
68. Nc6 {[%clk 0:00:08.3]} 68... Kd3 {[%clk 0:00:02.6]} 69. Nxb4+ {[%clk
0:00:06.1]} 69... Bxb4 {[%clk 0:00:03.5]} 70. Kg1 {[%clk 0:00:05.8]} 70... Bd6
{[%clk 0:00:04.4]} 71. Kh1 {[%clk 0:00:05.8]} 71... Ke3 {[%clk 0:00:03.7]} 72.
a4 {[%clk 0:00:06.2]} 72... Kd4 {[%clk 0:00:03.7]} 73. b4 {[%clk 0:00:04.9]}
73... Kc4 {[%clk 0:00:04.1]} 74. b5 {[%clk 0:00:03.8]} 74... Kc5 {[%clk
0:00:04.2]} 0-1